bitfinex/quotes_SOLUSD_20240725
["timestamp","ask_amount","ask_price","bid_price","bid_amount"]
[1721901367600,5.8775,170.14,170.06,16.4047]
[1721901367799,5.8775,170.14,170.09,13.32]
[1721901368107,64.1972,170.15,170.1,13.32]
[1721901368294,33.32,170.16,170.1,13.32]
[1721901369325,13.32,170.17,170.11,13.32]
[1721901369823,19.1965,170.17,170.11,13.32]
[1721901370223,13.32,170.16,170.1,13.32]
[1721901370597,19.1969,170.16,170.1,13.32]
[1721901371310,13.32,170.16,170.1,13.32]
[1721901372026,19.1965,170.17,170.11,13.32]
[1721901372611,13.32,170.18,170.12,13.32]
[1721901372925,13.32,170.18,170.13,13.32]
[1721901372926,19.1962,170.18,170.13,13.32]
[1721901374025,19.1962,170.18,170.12,13.32]
[1721901374321,19.1964,170.17,170.12,13.32]
[1721901375824,19.1965,170.17,170.11,13.32]
[1721901376029,19.1965,170.17,170.06,16.4047]
[1721901376222,13.32,170.16,170.1,13.32]
[1721901376727,19.197,170.16,170.1,13.32]
[1721901376909,19.1975,170.14,170.08,13.32]
[1721901377527,13.32,170.14,170.08,13.32]
[1721901378721,13.32,170.14,170.06,16.4047]
[1721901378923,13.32,170.14,170.08,13.32]
[1721901380120,13.32,170.14,170.06,16.4047]
[1721901380318,13.32,170.14,170.08,13.32]
[1721901385431,5.8758,170.19,170.12,13.32]
[1721901385615,13.32,170.17,170.12,13.32]
[1721901386633,13.32,170.18,170.13,13.32]
[1721901386823,16.3289,170.21,170.13,13.32]
[1721901387028,13.32,170.19,170.13,13.32]
[1721901387225,20.0,170.18,170.13,13.32]
[1721901387428,13.32,170.17,170.12,13.32]
[1721901387816,25.8761,170.18,170.12,13.32]
[1721901387817,20.0,170.18,170.12,13.32]
[1721901388018,13.32,170.18,170.13,13.32]
[1721901388218,5.8758,170.19,170.14,13.32]
[1721901388512,19.1958,170.19,170.14,13.32]
[1721901388706,19.1954,170.2,170.14,13.32]
[1721901390431,19.1958,170.19,170.14,13.32]
[1721901392620,5.8758,170.19,170.14,13.32]
[1721901392820,19.1958,170.19,170.14,13.32]
[1721901394143,19.1954,170.2,170.14,13.32]
[1721901394443,16.3289,170.21,170.16,13.32]
[1721901394444,35.524,170.21,170.16,13.32]
[1721901395043,19.1951,170.21,170.16,13.32]
[1721901395244,5.8751,170.21,170.16,13.32]
[1721901395739,5.8755,170.2,170.16,13.32]
[1721901396839,5.8751,170.21,170.17,13.32]
[1721901397047,13.32,170.23,170.17,13.32]
[1721901397542,19.1951,170.21,170.16,13.32]
[1721901397739,5.8755,170.2,170.16,13.32]
[1721901397940,19.1951,170.21,170.16,13.32]
[1721901398721,15.6311,170.25,170.16,13.32]
[1721901398918,5.8748,170.22,170.16,13.32]
[1721901399234,5.8748,170.22,170.17,13.32]
[1721901400340,19.1944,170.23,170.17,13.32]
[1721901400539,13.32,170.22,170.17,13.32]
[1721901402652,7.06297647,170.21,170.17,13.32]
[1721901403663,7.06297647,170.21,170.12,15.5389]
[1721901403856,7.06309736,170.2,170.16,13.32]
[1721901404029,13.32,170.22,170.16,13.32]
[1721901404229,7.06297771,170.21,170.17,13.32]
[1721901404645,19.1944,170.23,170.17,13.32]
[1721901404853,13.32,170.21,170.12,15.5389]
[1721901405025,7.06273536,170.2,170.16,13.32]
[1721901405223,7.06273536,170.2,170.17,13.32]
[1721901405442,13.32,170.22,170.17,13.32]
[1721901405641,7.0632187,170.21,170.17,13.32]
[1721901405844,7.0632187,170.2,170.17,13.32]
[1721901406045,19.1947,170.23,170.17,13.32]
[1721901406359,20.38321451,170.22,170.17,13.32]
[1721901406650,7.06321451,170.21,170.17,13.32]
[1721901407541,7.06321451,170.2,170.17,13.32]
[1721901407742,19.1947,170.23,170.17,13.32]
[1721901407954,7.06297452,170.22,170.17,13.32]
[1721901408128,7.06297452,170.22,170.18,13.32]
[1721901409352,7.06297452,170.22,170.17,13.32]
[1721901410537,7.06297452,170.22,170.18,13.32]
[1721901410738,7.06297452,170.21,170.18,13.32]
[1721901410955,19.194,170.24,170.18,13.32]
[1721901411132,7.06261489,170.23,170.18,13.32]
[1721901413645,12.93701489,170.23,170.18,13.32]
[1721901413843,7.06261489,170.22,170.18,13.32]
[1721901415947,7.06261489,170.23,170.18,13.32]
[1721901416136,7.06261354,170.22,170.18,13.32]
[1721901416460,19.1941,170.24,170.18,13.32]
[1721901416643,7.06261434,170.23,170.18,13.32]
[1721901419178,5.8753,170.21,170.12,16.71404323]
[1721901419477,19.1944,170.23,170.17,13.32]
[1721901419778,7.06286487,170.22,170.17,13.32]
[1721901422675,7.06286487,170.22,170.18,13.32]
[1721901423444,13.32,170.24,170.18,13.32]
[1721901423645,7.06255384,170.23,170.18,13.32]
[1721901425366,20.38255384,170.23,170.18,13.32]
[1721901425556,7.06255384,170.22,170.18,13.32]
[1721901428452,7.06255384,170.22,170.17,13.32]
[1721901429978,20.38255384,170.22,170.12,15.5389]
[1721901430182,20.38255384,170.21,170.16,13.32]
[1721901430362,7.06255384,170.2,170.16,13.32]
[1721901431153,7.06255384,170.19,170.16,13.32]
[1721901431364,7.06255384,170.18,170.17,13.32]
[1721901431582,13.32,170.23,170.17,13.32]
[1721901431877,7.06252014,170.22,170.17,13.32]
[1721901432463,7.06252014,170.22,170.19,13.32]
[1721901432777,7.06252014,170.21,170.19,13.32]
[1721901432988,7.06252014,170.23,170.19,13.32]
[1721901433186,7.06252014,170.22,170.19,13.32]
[1721901433391,7.06252014,170.21,170.19,13.32]
[1721901433555,7.06252014,170.24,170.19,13.32]
[1721901433756,7.06252014,170.23,170.19,13.32]
[1721901433984,7.06252014,170.22,170.2,13.32]
[1721901434150,7.06252014,170.24,170.2,13.32]
[1721901434356,7.06252014,170.24,170.23,13.32]
[1721901434771,7.06252014,170.27,170.23,13.32]
[1721901434966,7.06252014,170.26,170.23,13.32]
[1721901435170,7.06252014,170.25,170.23,13.32]
[1721901435453,7.06252014,170.24,170.23,13.32]
[1721901435686,7.06252014,170.27,170.23,13.32]
[1721901435876,7.06252014,170.26,170.23,13.32]
[1721901436188,7.06252014,170.25,170.23,13.32]
[1721901436366,7.06252014,170.26,170.23,13.32]
[1721901436964,12.93592014,170.26,170.22,13.32]
[1721901437182,7.06252014,170.25,170.21,13.32]
[1721901437358,7.06252014,170.25,170.19,16.111]
[1721901437359,5.8743,170.24,170.19,16.111]
[1721901437558,7.06252014,170.23,170.2,13.32]
[1721901439585,7.06252014,170.22,170.21,13.32]
[1721901439776,7.06252014,170.25,170.21,13.32]
[1721901439985,12.93622014,170.25,170.21,13.32]
[1721901440184,7.06252014,170.24,170.21,13.32]
[1721901441588,7.06252014,170.23,170.21,13.32]
[1721901441888,7.06252014,170.22,170.21,13.32]
[1721901442393,7.06252014,170.25,170.21,13.32]
[1721901442598,7.06252014,170.24,170.2,13.32]
[1721901442894,7.06252014,170.23,170.21,13.32]
[1721901443085,7.06252014,170.22,170.21,13.32]
[1721901443272,7.06252014,170.25,170.21,13.32]
[1721901443481,7.06252014,170.24,170.21,13.32]
[1721901443674,7.06252014,170.23,170.21,13.32]
[1721901443880,7.06252014,170.25,170.21,13.32]
[1721901444086,7.06252014,170.24,170.21,13.32]
[1721901444387,7.06252014,170.23,170.21,13.32]
[1721901444686,7.06252014,170.22,170.18,7.2293011]
[1721901444988,7.06252014,170.21,170.18,7.2293011]
[1721901445194,7.06252014,170.27,170.18,7.2293011]
[1721901445379,7.06132688,170.26,170.23,13.32]
[1721901445688,7.06132688,170.25,170.23,13.32]
[1721901445891,7.06132688,170.24,170.23,13.32]
[1721901446063,7.06132688,170.26,170.23,13.32]
[1721901446267,7.06132688,170.25,170.23,13.32]
[1721901446463,19.1924,170.29,170.23,13.32]
[1721901446464,7.06132688,170.24,170.23,13.32]
[1721901446865,7.06132688,170.27,170.23,13.32]
[1721901447070,7.06132688,170.26,170.23,13.32]
[1721901447285,7.06132688,170.25,170.23,13.32]
[1721901447595,7.06132688,170.24,170.23,13.32]
[1721901447797,5.8734,170.26,170.18,6.0544]
[1721901447968,5.8734,170.26,170.21,13.32]
[1721901447969,7.06132688,170.25,170.21,13.32]
[1721901448292,7.06132688,170.25,170.22,13.32]
[1721901448473,7.06132688,170.26,170.22,13.32]
[1721901448795,7.06132688,170.25,170.22,13.32]
[1721901448998,7.06132688,170.24,170.22,13.32]
[1721901449286,7.06132688,170.23,170.22,13.32]
[1721901449666,7.06132688,170.26,170.22,13.32]
[1721901449869,7.06132688,170.26,170.18,6.0544]
[1721901450089,20.38132688,170.26,170.21,13.32]
[1721901450276,7.06132688,170.25,170.21,13.32]
[1721901450585,7.06132688,170.24,170.21,13.32]
[1721901450784,12.93482688,170.26,170.21,13.32]
[1721901450995,7.06132688,170.25,170.21,13.32]
[1721901451489,7.06132688,170.24,170.21,13.32]
[1721901451682,7.06132688,170.23,170.21,13.32]
[1721901451870,7.06132688,170.22,170.21,13.32]
[1721901452073,7.06132688,170.25,170.21,13.32]
[1721901452295,7.06132688,170.24,170.2,13.32]
[1721901452466,7.06132688,170.23,170.2,13.32]
[1721901452669,7.06132688,170.22,170.2,13.32]
[1721901452862,7.06132688,170.21,170.2,13.32]
[1721901453095,7.06132688,170.25,170.2,13.32]
[1721901453283,7.06132688,170.24,170.2,13.32]
[1721901453594,19.1936,170.26,170.21,13.32]
[1721901453595,7.06132688,170.23,170.21,13.32]
[1721901453884,7.06132688,170.22,170.21,13.32]
[1721901458196,7.06132688,170.22,170.2,13.32]
[1721901458387,7.06132688,170.21,170.2,13.32]
[1721901459290,7.06132688,170.26,170.2,13.32]
[1721901459497,7.06132688,170.25,170.21,13.32]
[1721901459672,7.06132688,170.24,170.18,6.0544]
[1721901459869,20.38132688,170.23,170.15,15.4588]
[1721901460091,7.06132688,170.22,170.18,13.32]
[1721901460293,13.32,170.23,170.18,13.32]
[1721901460294,7.06132688,170.21,170.18,13.32]
[1721901460483,7.06132688,170.2,170.18,13.32]
[1721901460684,13.32,170.23,170.18,13.32]
[1721901460685,7.06132688,170.19,170.18,13.32]
[1721901461087,20.38132688,170.22,170.16,13.32]
[1721901461395,7.06132688,170.21,170.16,13.32]
[1721901461596,7.06132688,170.2,170.17,13.32]
[1721901461787,7.06132688,170.19,170.18,13.32]
[1721901462097,7.06132688,170.22,170.18,13.32]
[1721901462404,7.06132688,170.21,170.18,13.32]
[1721901462707,7.06132688,170.2,170.18,13.32]
[1721901462889,13.32,170.23,170.18,13.32]
[1721901462890,7.06132688,170.19,170.18,13.32]
[1721901463087,7.06132688,170.22,170.18,13.32]
[1721901463298,7.06132688,170.21,170.18,13.32]
[1721901463602,23.0795,170.27,170.19,13.32]
[1721901463603,7.06132688,170.2,170.19,13.32]
[1721901463787,23.0795,170.27,170.19,13.32]
[1721901463788,13.32,170.25,170.19,13.32]
[1721901463974,7.06203599,170.24,170.2,13.32]
[1721901464174,7.06203599,170.23,170.2,13.32]
[1721901464382,7.06203599,170.22,170.2,13.32]
[1721901464576,7.06203599,170.21,170.2,13.32]
[1721901466984,7.06203599,170.25,170.2,13.32]
[1721901467186,7.06203599,170.24,170.18,6.1257]
[1721901467485,22.3316,170.31,170.18,6.1257]
[1721901467486,7.06203599,170.23,170.2,15.2709]
[1721901467801,7.06203599,170.22,170.21,45.0]
[1721901468005,7.06203599,170.32,170.21,45.0]
[1721901468187,7.05982105,170.31,170.27,13.32]
[1721901468383,7.05982105,170.3,170.27,13.32]
[1721901468696,7.05982105,170.29,170.27,13.32]
[1721901468907,7.05982105,170.28,170.27,13.32]
[1721901469208,7.05982105,170.28,170.25,13.32]
[1721901469401,7.05982105,170.27,170.25,13.32]
[1721901469712,19.1919,170.3,170.25,13.32]
[1721901469713,7.05982105,170.26,170.25,13.32]
[1721901469917,7.05982105,170.26,170.24,13.32]
[1721901470212,7.05982105,170.25,170.2,15.2709]
[1721901470395,7.05982105,170.25,170.18,6.1257]
[1721901470396,20.37982105,170.25,170.18,6.1257]
[1721901470598,7.05982105,170.24,170.2,13.32]
[1721901471421,26.25452105,170.23,170.16,15.6463]
[1721901471715,7.05982105,170.22,170.18,13.32]
[1721901471895,7.05982105,170.22,170.17,13.32]
[1721901472579,7.05982105,170.21,170.17,13.32]
[1721901472782,7.05982105,170.21,170.16,13.32]
[1721901473528,7.05982105,170.21,170.17,13.32]
[1721901474207,7.05982105,170.21,170.16,13.32]
[1721901475686,7.05982105,170.21,170.11,20.15322202]
[1721901475687,20.37982105,170.21,170.11,18.97804351]
[1721901475902,7.05982105,170.2,170.16,13.32]
[1721901476103,7.05982105,170.19,170.16,13.32]
[1721901476300,7.05982105,170.2,170.16,13.32]
[1721901476503,7.05982105,170.19,170.16,13.32]
[1721901476693,7.05982105,170.2,170.16,13.32]
[1721901477004,7.05982105,170.19,170.16,13.32]
[1721901477305,7.05982105,170.18,170.16,13.32]
[1721901477619,7.05982105,170.17,170.16,13.32]
[1721901477910,7.05982105,170.2,170.15,13.32]
[1721901478111,7.05982105,170.19,170.16,13.32]
[1721901478290,7.05982105,170.18,170.16,13.32]
[1721901478495,7.05982105,170.17,170.16,13.32]
[1721901478908,7.05982105,170.21,170.16,13.32]
[1721901479112,7.05982105,170.2,170.16,13.32]
[1721901479412,7.05982105,170.19,170.16,13.32]
[1721901479610,7.05982105,170.18,170.16,13.32]
[1721901479911,7.05982105,170.17,170.16,13.32]
[1721901480093,7.05982105,170.21,170.16,13.32]
[1721901480302,7.05982105,170.2,170.16,13.32]
[1721901480609,7.05982105,170.19,170.16,13.32]
[1721901480922,7.05982105,170.18,170.17,13.32]
[1721901481103,19.1944,170.23,170.17,13.32]
[1721901481104,7.05982105,170.22,170.17,13.32]
[1721901482207,12.93462105,170.22,170.18,13.32]
[1721901482418,7.05982105,170.21,170.18,13.32]
[1721901483290,7.05982105,170.22,170.18,13.32]
[1721901484209,12.93462105,170.22,170.18,13.32]
[1721901484417,7.05982105,170.21,170.18,13.32]
[1721901484917,7.05982105,170.2,170.18,13.32]
[1721901485108,7.05982105,170.22,170.18,13.32]
[1721901485811,7.05982105,170.22,170.19,13.32]
[1721901487125,12.93462105,170.22,170.19,13.32]
[1721901487313,7.05982105,170.21,170.18,13.32]
[1721901488624,12.93492105,170.21,170.17,13.32]
[1721901488917,7.05982105,170.2,170.17,13.32]
[1721901490216,7.05982105,170.21,170.17,13.32]
[1721901490415,7.05982105,170.21,170.18,13.32]
[1721901490620,7.05982105,170.2,170.19,13.32]
[1721901491122,7.05982105,170.23,170.18,13.32]
[1721901491822,12.93432105,170.23,170.18,13.32]
[1721901492037,7.05982105,170.22,170.18,13.32]
[1721901494422,7.05982105,170.21,170.18,13.32]
[1721901494626,7.05982105,170.2,170.18,13.32]
[1721901494917,13.32,170.28,170.19,13.32]
[1721901495132,13.32,170.28,170.22,13.32]
[1721901495133,12.93451746,170.27,170.22,13.32]
[1721901495305,7.06141746,170.26,170.23,13.32]
[1721901495634,7.06141746,170.25,170.23,13.32]
[1721901495801,7.06141746,170.24,170.23,13.32]
[1721901496002,12.93481746,170.26,170.23,13.32]
[1721901496206,12.93521746,170.25,170.22,13.32]
[1721901496516,7.06141746,170.24,170.21,13.32]
[1721901496725,7.06141746,170.23,170.21,13.32]
[1721901496927,7.06141746,170.22,170.21,13.32]
[1721901497114,7.06141746,170.25,170.21,13.32]
[1721901497312,7.06141746,170.24,170.21,13.32]
[1721901498334,7.06141746,170.23,170.21,13.32]
[1721901498503,7.06141746,170.22,170.21,13.32]
[1721901499326,7.06141746,170.25,170.21,13.32]
[1721901500619,7.06141746,170.24,170.21,13.32]
[1721901500820,7.06141746,170.23,170.21,13.32]
[1721901501035,7.06141746,170.22,170.21,13.32]
[1721901501627,7.06141746,170.26,170.17,16.614]
[1721901501827,7.06141746,170.26,170.21,13.32]
[1721901505936,7.06141746,170.25,170.17,16.614]
[1721901506112,13.32,170.24,170.18,13.32]
[1721901506433,7.06141746,170.23,170.18,13.32]
[1721901506926,7.06141746,170.23,170.19,13.32]
[1721901507107,7.06141746,170.24,170.19,13.32]
[1721901507511,7.06141746,170.23,170.2,13.32]
[1721901507727,7.06141746,170.24,170.2,13.32]
[1721901508036,7.06141746,170.23,170.2,13.32]
[1721901508217,7.06141746,170.22,170.2,13.32]
[1721901508532,7.06141746,170.21,170.2,13.32]
[1721901508834,7.06141746,170.24,170.2,13.32]
[1721901511240,7.06141746,170.24,170.19,13.32]
[1721901515141,7.06141746,170.23,170.19,13.32]
[1721901515344,7.06141746,170.24,170.19,13.32]
[1721901515633,7.06141746,170.23,170.19,13.32]
[1721901515842,7.06141746,170.22,170.19,13.32]
[1721901516018,7.06141746,170.21,170.19,13.32]
[1721901516330,7.06141746,170.2,170.19,13.32]
[1721901516720,7.06141746,170.24,170.19,13.32]
[1721901516930,7.06141746,170.23,170.19,13.32]
[1721901517124,7.06141746,170.22,170.21,13.32]
[1721901517321,5.8733,170.27,170.21,13.32]
[1721901517322,20.38141746,170.26,170.21,13.32]
[1721901517532,5.8733,170.27,170.21,13.32]
[1721901517533,7.06141746,170.25,170.21,13.32]
[1721901517734,7.06141746,170.24,170.21,13.32]
[1721901518040,7.06141746,170.23,170.21,13.32]
[1721901518231,7.06141746,170.22,170.21,13.32]
[1721901518429,7.06141746,170.26,170.21,13.32]
[1721901518620,7.06141746,170.25,170.21,13.32]
[1721901518821,7.06141746,170.24,170.21,13.32]
[1721901519029,7.06141746,170.23,170.21,13.32]
[1721901519221,7.06141746,170.22,170.21,13.32]
[1721901519443,7.06141746,170.25,170.21,13.32]
[1721901519615,7.06141746,170.24,170.21,13.32]
[1721901519820,7.06141746,170.23,170.21,13.32]
[1721901520037,7.06141746,170.22,170.21,13.32]
[1721901520241,7.06141746,170.25,170.21,13.32]
[1721901520435,7.06141746,170.24,170.2,13.32]
[1721901520743,7.06141746,170.23,170.2,13.32]
[1721901521055,7.06141746,170.22,170.21,13.32]
[1721901521231,7.06141746,170.26,170.21,13.32]
[1721901521433,7.06141746,170.25,170.21,13.32]
[1721901521637,7.06141746,170.24,170.21,13.32]
[1721901521836,7.06141746,170.23,170.21,13.32]
[1721901522024,7.06141746,170.22,170.21,13.32]
[1721901522657,7.06141746,170.25,170.21,13.32]
[1721901522960,7.06141746,170.24,170.19,13.32]
[1721901523127,19.1938,170.25,170.19,13.32]
[1721901523128,7.06141746,170.23,170.19,13.32]
[1721901523328,7.06141746,170.22,170.19,13.32]
[1721901523528,7.06141746,170.21,170.19,13.32]
[1721901523748,7.06141746,170.24,170.19,13.32]
[1721901524038,7.06141746,170.23,170.19,13.32]
[1721901524241,20.38141746,170.22,170.13,15.0107]
[1721901524530,20.38141746,170.21,170.16,13.32]
[1721901524746,7.06141746,170.2,170.16,13.32]
[1721901524955,7.06141746,170.19,170.13,15.0107]
[1721901525163,7.06141746,170.18,170.13,13.32]
[1721901525446,13.32,170.19,170.13,13.32]
[1721901525447,7.06141746,170.17,170.13,13.32]
[1721901525625,7.06141746,170.16,170.13,13.32]
[1721901525831,13.32,170.19,170.13,13.32]
[1721901525832,7.06141746,170.15,170.13,13.32]
[1721901526030,7.06141746,170.14,170.13,13.32]
[1721901526225,7.06141746,170.18,170.13,13.32]
[1721901526433,7.06141746,170.17,170.13,13.32]
[1721901526646,7.06141746,170.16,170.13,13.32]
[1721901526850,7.06141746,170.15,170.14,13.32]
[1721901527432,7.06141746,170.18,170.14,13.32]
[1721901527643,7.06141746,170.17,170.14,13.32]
[1721901527955,7.06141746,170.16,170.14,13.32]
[1721901528134,7.06141746,170.15,170.14,13.32]
[1721901528332,7.06141746,170.19,170.14,13.32]
[1721901528564,7.06141746,170.18,170.14,13.32]
[1721901528864,7.06141746,170.17,170.14,13.32]
[1721901529159,7.06141746,170.16,170.14,13.32]
[1721901529359,7.06141746,170.19,170.14,13.32]
[1721901529531,7.06141746,170.18,170.14,13.32]
[1721901529736,16.6319,170.22,170.14,13.32]
[1721901529737,7.06141746,170.17,170.14,13.32]
[1721901529949,7.06141746,170.16,170.14,13.32]
[1721901530273,7.06141746,170.15,170.14,13.32]
[1721901530470,7.06141746,170.19,170.14,13.32]
[1721901530768,7.06141746,170.18,170.14,13.32]
[1721901530985,7.06141746,170.17,170.14,13.32]
[1721901531156,7.06141746,170.19,170.14,13.32]
[1721901531356,7.06141746,170.18,170.14,13.32]
[1721901531670,7.06141746,170.17,170.14,13.32]
[1721901531961,7.06141746,170.16,170.14,13.32]
[1721901532161,7.06141746,170.15,170.14,13.32]
[1721901532360,7.06141746,170.19,170.14,13.32]
[1721901532674,7.06141746,170.18,170.14,13.32]
[1721901532856,7.06141746,170.19,170.14,13.32]
[1721901533055,5.8754,170.2,170.14,13.32]
[1721901533056,7.06141746,170.18,170.14,13.32]
[1721901533259,7.06141746,170.17,170.15,13.32]
[1721901533462,7.06141746,170.16,170.15,13.32]
[1721901533865,7.06141746,170.21,170.15,13.32]
[1721901534062,7.06141746,170.2,170.15,13.32]
[1721901534369,7.06141746,170.19,170.15,13.32]
[1721901534672,7.06141746,170.18,170.15,13.32]
[1721901534857,7.06141746,170.17,170.15,13.32]
[1721901535047,7.06141746,170.2,170.15,13.32]
[1721901535248,7.06141746,170.19,170.14,13.32]
[1721901535448,7.06141746,170.2,170.14,13.32]
[1721901535759,7.06141746,170.19,170.14,13.32]
[1721901535970,7.06141746,170.18,170.14,13.32]
[1721901536152,7.06141746,170.2,170.14,13.32]
[1721901536476,7.06141746,170.19,170.14,13.32]
[1721901536674,7.06141746,170.18,170.11,36.0358]
[1721901536865,34.2959,170.26,170.12,46.17507618]
[1721901537067,7.06245884,170.25,170.14,16.0358]
[1721901537376,7.06245884,170.24,170.15,1.17494465]
[1721901537563,7.06245884,170.23,170.15,1.17494465]
[1721901537760,7.06245884,170.22,170.21,13.32]
[1721901538468,5.873,170.27,170.21,13.32]
[1721901538469,7.06245884,170.26,170.21,13.32]
[1721901538675,7.06245884,170.25,170.21,13.32]
[1721901538876,5.873,170.27,170.21,13.32]
[1721901538877,7.06245884,170.24,170.21,13.32]
[1721901539064,7.06245884,170.26,170.21,13.32]
[1721901539377,7.06245884,170.25,170.22,13.32]
[1721901539572,7.06245884,170.24,170.22,13.32]
[1721901539770,7.06245884,170.26,170.22,13.32]
[1721901539973,32.02379099,170.31,170.16,13.32]
[1721901539974,7.06245884,170.25,170.24,13.32]
[1721901540849,7.06245884,170.32,170.24,66.6]
[1721901541095,7.06245884,170.31,170.27,13.32]
[1721901541373,7.06245884,170.31,170.26,13.32]
[1721901541374,7.06245884,170.3,170.26,13.32]
[1721901541568,7.06245884,170.29,170.26,13.32]
[1721901541764,7.06245884,170.28,170.26,13.32]
[1721901541966,7.06245884,170.31,170.26,13.32]
[1721901542185,7.06245884,170.3,170.26,13.32]
[1721901542360,7.06245884,170.29,170.26,13.32]
[1721901542560,7.06245884,170.28,170.26,13.32]
[1721901542871,7.06245884,170.27,170.26,13.32]
[1721901543260,7.06245884,170.31,170.26,13.32]
[1721901543456,7.06245884,170.3,170.26,13.32]
[1721901543867,7.06245884,170.3,170.27,13.32]
[1721901544076,7.06245884,170.29,170.27,13.32]
[1721901544378,13.32,170.32,170.27,13.32]
[1721901544379,7.06245884,170.28,170.27,13.32]
[1721901544562,7.06245884,170.31,170.27,13.32]
[1721901546161,7.06245884,170.31,170.28,13.32]
[1721901546376,7.06245884,170.3,170.28,13.32]
[1721901546568,7.06245884,170.32,170.28,13.32]
[1721901546769,7.06245884,170.31,170.28,13.32]
[1721901546979,7.06245884,170.32,170.28,13.32]
[1721901547177,7.06245884,170.31,170.27,13.32]
[1721901547376,7.06245884,170.32,170.27,13.32]
[1721901547577,7.06245884,170.31,170.27,13.32]
[1721901547782,12.93375884,170.32,170.27,13.32]
[1721901547984,7.06245884,170.31,170.27,13.32]
[1721901549765,7.06245884,170.3,170.27,13.32]
[1721901550061,13.32,170.35,170.29,13.32]
[1721901550280,13.32,170.35,170.3,13.32]
[1721901550281,7.05934675,170.34,170.3,13.32]
[1721901550667,7.05934675,170.33,170.3,13.32]
[1721901550987,7.05934675,170.32,170.3,13.32]
[1721901551182,7.05934675,170.31,170.3,13.32]
[1721901551388,7.05934675,170.34,170.3,13.32]
[1721901554276,7.05934675,170.34,170.31,13.32]
[1721901554479,7.05934675,170.33,170.32,13.32]
[1721901555280,7.05934675,170.36,170.32,13.32]
[1721901555484,5.8698,170.37,170.32,13.32]
[1721901555485,7.05934675,170.35,170.32,13.32]
[1721901555683,12.92924675,170.36,170.32,13.32]
[1721901555879,7.05934675,170.35,170.32,13.32]
[1721901560000,7.05934675,170.35,170.31,13.32]
[1721901560491,13.32,170.34,170.29,13.32]
[1721901560684,7.05934675,170.33,170.28,13.32]
[1721901560893,26.25024675,170.33,170.28,13.32]
[1721901561105,7.05934675,170.32,170.28,13.32]
[1721901561796,7.05934675,170.31,170.28,13.32]
[1721901561997,7.05934675,170.3,170.28,13.32]
[1721901562202,19.1906,170.34,170.28,13.32]
[1721901562388,7.05968555,170.33,170.28,13.32]
[1721901564583,19.1906,170.34,170.28,13.32]
[1721901564899,7.05956638,170.33,170.28,13.32]
[1721901566402,7.05956638,170.33,170.26,21.7233]
[1721901566583,26.25046638,170.33,170.28,13.32]
[1721901566900,7.05956638,170.32,170.29,13.32]
[1721901567103,7.05956638,170.31,170.29,13.32]
[1721901567296,7.05956638,170.34,170.29,13.32]
[1721901568592,20.37956638,170.35,170.29,13.32]
[1721901568795,7.05956638,170.34,170.29,13.32]
[1721901569707,13.32,170.33,170.28,13.32]
[1721901570090,19.1907,170.34,170.28,13.32]
[1721901570911,20.37816008,170.33,170.28,13.32]
[1721901571145,19.1907,170.34,170.28,13.32]
[1721901571411,7.05815965,170.33,170.28,13.32]